{"text_format":"1","workbook":"xlsx","n_sheets":6,"sheets":["Anlatım","Beceri Edinim Formu","Ayarlamalar","DönemSonu","SeneSonu","AlanBecerileri"],"not_rendered":{"charts":0,"images":12,"macros":1,"external_links":0,"defined_names":0,"comments":0,"pivot_tables":0},"unopened":[],"bounds":{"document_bytes":16777216,"sheet_cells":100000,"rows_first":2000,"rows_last":500,"rows_between":2000,"halvings":0,"cell_chars":16384,"cell_head_chars":4096},"cells_cut":0,"cells_raw":0,"read":"whole","date_system":"1900"}

{"sheet":"Anlatım","index":0,"n_rows":127,"n_cols":13,"rows_kept":127,"cut":false,"hidden":false,"merged":[[97,0,98,16],[99,0,100,16],[101,0,102,16],[91,0,92,16],[93,0,94,16],[95,0,96,16],[31,0,34,3],[35,0,44,4],[45,0,62,2],[45,6,62,11],[3,0,4,16],[7,0,8,16],[9,0,10,16],[11,0,12,3],[24,0,25,16],[16,0,17,16],[13,0,14,3],[18,0,19,16],[20,0,21,16],[22,0,23,16],[11,9,12,12],[13,9,14,12],[126,11,127,16],[108,12,108,15],[109,12,109,15],[110,11,111,16],[112,11,113,16],[114,11,115,16],[116,11,117,16],[118,11,119,16],[120,11,121,16],[122,11,123,16],[124,11,125,16],[106,0,107,16],[108,1,108,4],[109,1,109,4],[110,0,111,5],[122,0,123,5],[124,0,125,5],[112,0,113,5],[114,0,115,5],[116,0,117,5],[118,0,119,5],[120,0,121,5],[103,0,104,16],[89,0,90,16],[0,0,2,16],[72,0,75,6],[72,8,75,16],[5,0,6,16],[63,0,63,6],[63,8,63,16],[84,0,85,16],[86,0,87,16],[26,0,27,16],[76,0,77,16],[82,0,83,16],[29,0,30,16],[80,0,81,16],[78,0,79,16]]}
["LÜTFEN BU SAYFANIN TAMAMINI DİKKATLİCE OKUYUNUZ"]
[]
[]
["Bu, \"Gelişim ve İzleme Formu Oluşturma Robotu\"muzun ücretli versiyonudur."]
[]
["Bu Robot Telefona, Tablete ve Apple cihazlara uygun olmayıp Bilgisayarda, Excel programında çalışmaktadır. Lütfen programımızı bilgisayarda kullanınız."]
[]
["Full versiyonu için gelişmeleri aşağıdaki linke tıklayarak Whatsapp grubumuzdan takip edebilirsiniz."]
[]
["Lütfen Programımızın Ücretli Versiyonunu Paylaşmayınız. Emeğimize Saygı Gösterdiğiniz İçin Teşekkür Ederiz."]
[]
["Plan ve Programlarımızı Görmek",null,null,null,null,null,null,null,null,"planim.com.tr"]
[]
["ve bize ulaşmak için:",null,null,null,null,null,null,null,null,"okul öncesi planları"]
[]
[]
["NOTLAR"]
[]
["Bu Robot 2024-2025 Maarif Programına göre hazırlanmıştır."]
[]
["Beceri Edinim Formları Dönemlere göre değişen zorlukta hazırlanmıştır (Her ay bir önceki aya göre daha zor kazanımlar otomatik olarak yazılır)"]
[]
["Programın sadece \"Ayarlamalar\"ve \"Beceri Edinim Formu\" sekmelerinde değişiklik yapabilirsiniz. (Eğer bir değişiklik yapmazsanız program tamamen otomatik olarak çalışacaktır)"]
[]
["Programın ayarlarının bozulmaması için sayfanın alt tarafındaki \"Ayarlamalar\" sekmesi ve \"Beceri Edinim Formu\"ndaki İsim Soyisim vb. Yeşil kutular hariç tüm sekmelerdeki yazılar kilitlenmiştir ve değiştirilemez."]
[]
["Beceri Edinim Formlarında sadece olumlu cümleler kullanılmıştır. \"Yapamaz\", \"Yapamıyor\", \"Beceremiyor\" ile biten hiçbir cümle kullanılmamıştır. Ayrıca Programdaki \"Yapar\", \"Söyler\" şeklindeki geniş zaman cümleleri \"Yapabiliyor\", \"Söyleyebiliyor\" şeklinde değiştirilmiştir."]
[]
[]
["NASIL ÇALIŞIR? (LÜTFEN TAMAMINI OKUYUNUZ)"]
[]
["1: Bu uyarı çıkarsa \"Düzenlemeyi Etkinleştir\" butonuna tıklayınız."]
[]
[]
[]
["2: Güvenlik Riski uyarısı çıkarsa Excel'i kapatıp 3. ve 4. maddeleri uygulayınız."]
[]
[]
[]
[]
[]
[]
[]
[]
[]
["3: İndirdiğiniz programımıza sağ tıklayıp özellikler'i seçiniz.",null,null,null,null,null,"4: açılan pencerede \"Engellemeyi Kaldır\"a tıklayıp sonra da \"Tamam\"a basınız. Programı tekrar açtığınızda 5. maddeden devam ediniz."]
[]
[]
[]
[]
[]
[]
[]
[]
[]
[]
[]
[]
[]
[]
[]
[]
[]
["Excel'in yeni versiyonlarında çıkan uyarı:",null,null,null,null,null,null,null,"Excel'in yeni versiyonunda çıkan uyarılar:"]
[]
[]
[]
[]
[]
[]
[]
[]
["1-A: Excel versiyonunuz yeniyse Programı ilk açtığınızda sayfanın üst tarafında \"Makrolar devre dışı bırakıldı\" uyarısı verirebilir                        \"İçeriği Etkinleştir\" butonuna basınız.",null,null,null,null,null,null,null,"1-B: Excel versiyonunuz eskiyse Programı ilk açtığınızda sayfanın üst tarafında \"Makrolar devre dışı bırakıldı\" uyarısı verirebilir önce \"Seçenekler\"e tıklayıp, açılan sayfada \"İçeriği Etkinleştir\"i seçerek \"Tamam\"a butonuna basınız."]
[]
[]
[]
["2: Sayfanın en altındaki \"Ayarlamalar\" sekmesini seçerek o sekmede bulunduğunuz ayı seçiniz."]
[]
["3: İhtiyacınıza göre sayfanın en altındaki \"Gelişim ve İzleme Formu\", \"Birinci Dönem Gelişim Raporu\" ya da \"Yıl Sonu Gelişim Raporu\" sekmesini seçip \"Çocuğun Adı Soyadı\", \"Öğretmenin Adı Soyadı\" ve \"Yaş Grubu\" kısımlarını doldurunuz. Çocuğun adını yazdığınız anda Robotumuz paragrafları çocuğun ismine göre kişiselleştirecektir."]
[]
["4: Robotun oluşturduğu içeriği okuyunuz. İçeriği beğenirseniz \"CTRL+P\" tuşlarıyla direkt olarak çıktı alabilir ya da içeriği beğenmezseniz Ayarlamalar sekmesindeki \"Başla\" tuşu ile sayfadaki tüm içeriği yenileyebilirsiniz."]
[]
["5:  Ayarlamalar sekmesindeki \"Başla\" tuşuna her basışınızda tüm sayfadaki içerik sil baştan yazılır. Her çocuk için ayar yapmadan yeni ve otomatik bir form hazırlamak için  Ayarlamalar sekmesindeki \"Başla\" tuşuna basmanız yeterlidir."]
[]
["6: İsterseniz Gelişim ve İzleme Formları için sayfanın alt tarafındaki\"Ayarlamalar\" sekmesinden hangi rakamda olduğunuz, ayın değerleri gibi ufak ayarlamalar yapabilirsiniz. (Ayarlama yapmazsanız otomatik seçilecektir)"]
[]
["Not: \"Beceri Edinim Formu\"ndaki \"Genel Değerlendirme ve Öneriler\" kısımlarını kendi cümlelerinizle doldurmalısınız."]
[]
[]
["NASIL KULLANIRIM (AYARLAMALAR ve DÜZENLEMELER YAPMA ile ÇIKTI ALMA)"]
[]
["1: Sayfanın alt tarafındaki sekmelerden Ayarlamalar'a tıklayıp açınız."]
[]
["2: Çocuğun Adı ve Çocuğun Soyadı kısımlarındaki yeşil kutuları boş bırakmayınız, kesin olarak yazınız"]
[]
["3: İşlediğiniz rakamı, rengi, şekli isterseniz seçebilirsiniz. (Seçmezseniz kavram sırasına uygun olarak robotumuz kendisi seçeer.)"]
[]
["5: Hangi Dönemi seçecekseniz \"Dönem Seçiniz\" kısmından seçiniz."]
[]
["6: BAŞLA'ya basınız. (BAŞLA'ya bastığınızda \"Beceri Edinim Formu\"nuz hazırlanacaktır. (Bilgisayarınızın hızına göre 2-30 saniye sürebilir.)"]
[]
["7: Öğretmen Adı, Yaş Grubu, Tarih gibi bilgileri düzenleyip gerekiyorsa öğrencinize göre gelişim alanlarında da düzenlemeleri de yaptıktan sonra"]
[]
["8: CTRL ve P tuşlarına birlikte basıarak çıktı alabilirsiniz."]
[]
[]
["E-Okul'a Gelişim Raporunu Kopyalamak İçin 2 Yöntem"]
[]
[null,"1. Yöntem",null,null,null,null,null,null,null,null,null,null,"2. Yöntem"]
[null,"Sürükle-Bırak Yöntemi",null,null,null,null,null,null,null,null,null,null,"Eklenti Yöntemi"]
["1: Bir adet word belgesi açıyoruz.",null,null,null,null,null,null,null,null,null,null,"1: Chrome ya da Opera Programını Açıyoruz"]
[]
["2: Excel'deki gelişim alanlarındaki paragrafları Word'e kopyalıyoruz",null,null,null,null,null,null,null,null,null,null,"2: Buraya tıklayıp Programın sayfasına giriyoruz"]
[]
[" Yeni paragraf için F9'a basınız",null,null,null,null,null,null,null,null,null,null,"3: Operaya Ekle / Chrome'a Ekle'ye basıyoruz"]
[]
["4: E-Okul'u açıyoruz.",null,null,null,null,null,null,null,null,null,null,"4: E-Okul'a girip Gelişim Raporu bölümünü açıyoruz"]
[]
["5: Hem E-Okul'u hem Word belgesini açıp yan yana yerleştiriyoruz.",null,null,null,null,null,null,null,null,null,null,"5: Gelişim Raporu açıkken Adres çubuğunun yanındaki yapboz işaretine tıklıyoruz"]
[]
["6: Hem E-Okul penceresini hem de Word belgesini küçültüp yan yana yerleştiriyoruz.",null,null,null,null,null,null,null,null,null,null,"6: Açılan sayfada Supreme Copy'in yanındaki pin işaretine basıyoruz"]
[]
["7: Word belgesinden gelişim alanına uygun bir paragrafı seçiyoruz.",null,null,null,null,null,null,null,null,null,null,"7: Adres çubuğunun yanında bir fare işareti gözükecek ona tıklıyoruz"]
[]
["8: Word belgesinden sürükleyerek E-Okul'un içine bırakıyoruz.",null,null,null,null,null,null,null,null,null,null,"8: Enable extension on this website butonuna basıyoruz"]
[]
[null,null,null,null,null,null,null,null,null,null,null,"9: Artık kopyala/yapıştır yapabilirsiniz"]

{"sheet":"Beceri Edinim Formu","index":1,"n_rows":24,"n_cols":11,"rows_kept":24,"cut":false,"hidden":false,"merged":[[23,1,23,10],[22,1,22,10],[1,1,1,10],[2,1,2,10],[4,1,4,2],[4,3,4,5],[4,6,4,7],[4,8,4,10],[10,1,10,10],[5,1,5,2],[5,3,5,5],[5,6,5,7],[5,8,5,10],[6,1,6,2],[6,3,6,5],[6,6,6,7],[6,8,6,10],[7,1,7,2],[7,3,7,5],[7,6,7,7],[7,8,7,10],[9,1,9,10],[11,1,11,10],[12,1,12,10],[13,1,13,10],[14,1,14,10],[17,1,17,10],[18,1,18,10],[19,1,19,10],[20,1,20,10],[15,1,15,10],[16,1,16,10]]}
[null,null,null,null,null,null,null,null,null,null,"EK-4"]
[null,"Beceri Edinim Formu"]
[null,"(Dönem Sonu)"]
[]
[null,"Çocuğun Adı:",null,"İsmi Yazın",null,null,"Çocuğun Soyadı:",null,"Soyismi Yazın"]
[null,"Öğretmen:",null,null,null,null,"Doğum Tarihi:"]
[null,"Okulun Adı:",null,null,null,null,"Cinsiyeti:"]
[null,"Rapor Tarihi:",null,null,null,null,"Okula Başlama:"]
[]
[null,"Alan Becerileri:"]
[null,"İzlediği ya da dinlediği sanat eseri hakkındaki duygularını açıklayabiliyor. Sanat eseri hakkında sorular sorabiliyor. Gezi, gözlem çalışmalarında tehlikeli davranışlardan kaçınıyor. Yeterli miktarda sıvı tüketmeye gayret edebiliyor. Oyunlarda lider rolündeki çocuğu izleyebiliyor. İlk dönemde öğrendiğimiz rakamları yazabiliyor."]
[null,"Sosyal - Duygusal Öğrenme Becerileri:"]
[null,"Bu bölüm Full versiyonda açılacaktır."]
[null,"Kavramsal Beceriler:"]
[null,"Bu bölüm Full versiyonda açılacaktır."]
[null,"Okuryazarlık Becerileri:"]
[null,"Bu bölüm Full versiyonda açılacaktır."]
[null,"Değerler:"]
[null,"Bu bölüm Full versiyonda açılacaktır."]
[null,"Eğilimler:"]
[null,"Bu bölüm Full versiyonda açılacaktır."]
[]
[null,"Genel Değerlendirme ve Öneriler"]
[null,"Genel Değerlendirme ve öneriler kısmına, çocukların bireysel ilgi duydukları merkezleri, oyuncakları, oyunları ve çocukların bireysel yetenekleri ile tatile ve geleceklerine dair güzel dileklerinizi yazabilirsiniz."]

{"sheet":"Ayarlamalar","index":2,"n_rows":40,"n_cols":27,"rows_kept":40,"cut":false,"hidden":false,"merged":[[34,6,34,7],[35,6,35,7],[36,6,36,7],[37,6,37,7],[33,6,33,7],[27,0,27,7],[29,0,29,7],[28,0,28,6],[30,0,30,7],[31,0,31,7],[24,0,24,6],[26,0,26,6],[23,0,23,7],[25,0,25,7],[9,0,20,2],[0,0,0,2],[2,0,2,2],[6,0,6,2],[4,0,4,2],[22,0,22,6],[2,4,20,6]]}
["Çocuğun Adı:",null,null,null,null,null,null,null,"(Dönem Sonu)"," ",null,null,null,null,null,null,null,null,null,null,null,null,null,null,1,"daire","kırmızı"]
[null,null,null,null,null,null,null,null,"(Sene Sonu)"," ",null,null,null,null,null,null,null,null,null,null,null,null,null,null,2,"üçgen","mavi"]
["İsmi Yazın",null,null," ","Eğer \"Başla\" düğmesi gözükmüyorsa        Robotunuzun indirme sayfasındaki videoları izleyerek videoda anlatılan aşamaları                                        (Engellemeyi Kaldırma ve Makrolara İzin Verme) gerçekleştiriniz.",null,null," ",null," ",null,null,null,null,null,null,null,null,null,null,null,null,null,null,3,"kare","sarı"]
[null,null,null,null,null,null,null,null,null," ",null,null,null,null,null,null,null,null,null,null,null,null,null,null,4,"dikdörtgen","turuncu"]
["Çocuğun Soyadı:",null,null,null,null,null,null,null,null," ",null,null,null,null,null,null,null,null,null,null,null,null,null,null,5,"elips","yeşil"]
[null,null,null,null,null,null,null,null,null," ",null,null,null,null,null,null,null,null,null,null,null,null,null,null,6,"küre","mor"]
["Soyismi Yazın",null,null,null,null,null,null,null,null," ",null,null,null,null,null,null,null,null,null,null,null,null,null,null,7,"küp","kahverengi"]
[null,null,null,null,null,null,null,null,null," ",null,null,null,null,null,null,null,null,null,null,null,null,null,null,8,"piramit","beyaz"]
[null,null,null,null,null,null,null,null,null," ",null,null,null,null,null,null,null,null,null,null,null,null,null,null,9,"silindir","pembe"]
["Çocuğun adını ve soyadını yeşil kutulara yazınız. Diğer bilgileri rapor oluşturulduktan sonra, rapor sayfasında dolduracaksınız.",null,null,null,null,null,null,null,null," ",null,null,null,null,null,null,null,null,null,null,null,null,null,null,"Otomatik","Otomatik","siyah"]
[null,null,null,null,null,null,null,null,null," ",null,null,null,null,null,null,null,null,null,null,null,null,null,null,null,null,"gri"]
[null,null,null,null,null,null,null,null,null," ",null,null,null,null,null,null,null,null,null,null,null,null,null,null,null,null,"Otomatik"]
[null,null,null,null,null,null,null," ",null," "]
[null,null,null,null,null,null,null," ",null," "]
[null,null,null,null,null,null,null," ",null," "]
[null,null,null,null,null,null,null," ",null," "]
[null,null,null,null,null,null,null," ",null," "]
[null,null,null,null,null,null,null," ",null," "]
[null,null,null,null,null,null,null," ",null," "]
[null,null,null,null,null,null,null," ",null," "]
[null,null,null,null,null,null,null," ",null,"  "]
[]
["Hangi Rakama kadar tanıyabiliyor? Yandaki yeşil kutuya tıklayıp seçiniz.",null,null,null,null,null,null,"Otomatik"]
[]
["Hangi rakama kadar yazabiliyor? (Rehber çizgiler yardımıyla) Yandaki yeşil kutuya tıklayıp seçiniz.",null,null,null,null,null,null,"Otomatik"]
[]
["Hangi şekle kadar öğrendiniz? Yandaki yeşil kutuya tıklayıp seçiniz. (Kitaplardaki sıraya göre)",null,null,null,null,null,null,"Otomatik"]
[]
["Hangi renge kadar öğrendiniz? Yandaki yeşil kutuya tıklayıp seçiniz. (Kitaplardaki sıraya göre)",null,null,null,null,null,null,"Otomatik"]
[]
["Yukarıdaki ayarlamaları yaptıktan sonra en son aşağıdaki yeşil kutudan"]
["Hangi aya ait Gelişim ve İzleme Formu ya da hangi döneme ait Gelişim Raporu hazırlanacağını seçip BAŞLA'ya basınız."]
[]
[null,null,null,null,"Mavi kutudan Dönem seçiniz:",null,"KULLANIM"]
[null,null,null,null,"(Dönem Sonu)",null,"1: İlk olarak yeşil kutulara çocuğun adını ve soyadını yazınız."]
[null,null,null,null,null,null,"2: Beceri Edinim Formları için Yeşil kutuları doldurunuz."]
[null,null,null,null,null,null,"3: Robotun otomatik olarak doldurmasını isterseniz \"Otomatik\" bırakınız."]
[null,null,null,null,null,null,"4: Ardından Başla'nın üzerinden Dönemi seçiniz."]
[null,null,null,null,"planim.com.tr"]
[null,null,null,null,"Okul Öncesi Planları"]

{"sheet":"DönemSonu","index":3,"n_rows":24,"n_cols":11,"rows_kept":24,"cut":false,"hidden":false,"merged":[[18,1,18,10],[23,1,23,10],[22,1,22,10],[1,1,1,10],[2,1,2,10],[4,1,4,2],[4,3,4,5],[7,1,7,2],[7,3,7,5],[5,1,5,2],[5,3,5,5],[5,6,5,7],[5,8,5,10],[6,1,6,2],[6,3,6,5],[6,6,6,7],[19,1,19,10],[20,1,20,10],[4,6,4,7],[4,8,4,10],[7,6,7,7],[7,8,7,10],[17,1,17,10],[9,1,9,10],[10,1,10,10],[11,1,11,10],[12,1,12,10],[6,8,6,10],[13,1,13,10],[14,1,14,10],[15,1,15,10],[16,1,16,10]]}
[null,null,null,null,null,null,null,null,null,null,"EK-4"]
[null,"Beceri Edinim Raporu"]
[null,"(Dönem Sonu)"]
[]
[null,"Çocuğun Adı:",null,{"$f":"Ayarlamalar!A3","v":"İsmi Yazın"},null,null,"Çocuğun Soyadı:",null,{"$f":"Ayarlamalar!A7","v":"Soyismi Yazın"}]
[null,"Öğretmen:",null,null,null,null,"Doğum Tarihi:"]
[null,"Okulun Adı:",null,null,null,null,"Cinsiyeti:"]
[null,"Rapor Tarihi:",null,null,null,null,"Okula Başlama:"]
[]
[null,{"$f":"CONCATENATE(\"ALAN BECERİLERİ: \", LEN(B11), \" Karakter\")","v":"ALAN BECERİLERİ: 419 Karakter"}]
[null,{"$f":"CONCATENATE(K_BENZERSİZ(AlanBecerileri!A1:A17,1,\". \")&\". \",K_BENZERSİZ(AlanBecerileri!A18:A26,1,\". \")&\". \",K_BENZERSİZ(AlanBecerileri!A27:A36,1,\". \")&\". \",K_BENZERSİZ(AlanBecerileri!A37:A50,1,\". \")&\". \",K_BENZERSİZ(AlanBecerileri!A51:A66,1,\". \")&\". \",K_BENZERSİZ(AlanBecerileri!A67:A75,1,\". \")&\". \",K_BENZERSİZ(AlanBecerileri!A76:A81,1,\". \")&\". \")","v":"İsmi Yazın cümlenin kelimelerden oluştuğunu ve kelimeler arasında boşluklar olduğunu fark edebiliyor. İlk dönemde öğrendiğimiz tüm renkleri biliyor. Canlıların yaşam döngülerini fark edebiliyor. Milli ve Dini bayramların farkına varabiliyor. Farklı yoğurma materyallerini kavrayıp şekillendirebiliyor. Temel sanat materyallerini amacına uygun olarak kullanabiliyor. Öğrendiği şarkıları doğru telaffuzla söyleyebiliyor. "}]
[null,{"$f":"CONCATENATE(\"SOSYAL-DUYGUSAL ÖĞRENME BECERİLERİ: \", LEN(B13), \" Karakter\")","v":"SOSYAL-DUYGUSAL ÖĞRENME BECERİLERİ: 37 Karakter"}]
[null,"Bu bölüm Full versiyonda açılacaktır."]
[null,{"$f":"CONCATENATE(\"KAVRAMSAL BECERİLER: \", LEN(B15), \" Karakter\")","v":"KAVRAMSAL BECERİLER: 37 Karakter"}]
[null,"Bu bölüm Full versiyonda açılacaktır."]
[null,{"$f":"CONCATENATE(\"OKURYAZARLIK BECERİLERİ: \", LEN(B17), \" Karakter\")","v":"OKURYAZARLIK BECERİLERİ: 37 Karakter"}]
[null,"Bu bölüm Full versiyonda açılacaktır."]
[null,{"$f":"CONCATENATE(\"DEĞERLER: \", LEN(B19), \" Karakter\")","v":"DEĞERLER: 37 Karakter"}]
[null,"Bu bölüm Full versiyonda açılacaktır."]
[null,{"$f":"CONCATENATE(\"EĞİLİMLER: \", LEN(B21), \" Karakter\")","v":"EĞİLİMLER: 37 Karakter"}]
[null,"Bu bölüm Full versiyonda açılacaktır."]
[]
[null,"Genel Değerlendirme ve Öneriler"]
[null,"Genel Değerlendirme ve öneriler kısmına, çocukların bireysel ilgi duydukları merkezleri, oyuncakları, oyunları ve çocukların bireysel yetenekleri ile tatile ve geleceklerine dair güzel dileklerinizi yazabilirsiniz."]

{"sheet":"SeneSonu","index":4,"n_rows":24,"n_cols":11,"rows_kept":24,"cut":false,"hidden":false,"merged":[[1,1,1,10],[2,1,2,10],[4,1,4,2],[4,3,4,5],[7,1,7,2],[7,3,7,5],[4,6,4,7],[4,8,4,10],[5,1,5,2],[5,3,5,5],[5,6,5,7],[5,8,5,10],[6,1,6,2],[6,3,6,5],[6,6,6,7],[6,8,6,10],[7,6,7,7],[7,8,7,10],[9,1,9,10],[10,1,10,10],[11,1,11,10],[22,1,22,10],[23,1,23,10],[20,1,20,10],[12,1,12,10],[13,1,13,10],[14,1,14,10],[15,1,15,10],[16,1,16,10],[18,1,18,10],[17,1,17,10],[19,1,19,10]]}
[null,null,null,null,null,null,null,null,null,null,"EK-4"]
[null,"Beceri Edinim Raporu"]
[null,"(Sene Sonu)"]
[]
[null,"Çocuğun Adı:",null,{"$f":"Ayarlamalar!A3","v":"İsmi Yazın"},null,null,"Çocuğun Soyadı:",null,{"$f":"Ayarlamalar!A7","v":"Soyismi Yazın"}]
[null,"Öğretmen:",null,null,null,null,"Doğum Tarihi:"]
[null,"Okulun Adı:",null,null,null,null,"Cinsiyeti:"]
[null,"Rapor Tarihi:",null,null,null,null,"Okula Başlama:"]
[]
[null,{"$f":"CONCATENATE(\"ALAN BECERİLERİ: \", LEN(B11), \" Karakter\")","v":"ALAN BECERİLERİ: 37 Karakter"}]
[null,"Bu bölüm Full versiyonda açılacaktır."]
[null,{"$f":"CONCATENATE(\"SOSYAL-DUYGUSAL ÖĞRENME BECERİLERİ: \", LEN(B13), \" Karakter\")","v":"SOSYAL-DUYGUSAL ÖĞRENME BECERİLERİ: 37 Karakter"}]
[null,"Bu bölüm Full versiyonda açılacaktır."]
[null,{"$f":"CONCATENATE(\"KAVRAMSAL BECERİLERİ: \", LEN(B15), \" Karakter\")","v":"KAVRAMSAL BECERİLERİ: 37 Karakter"}]
[null,"Bu bölüm Full versiyonda açılacaktır."]
[null,{"$f":"CONCATENATE(\"OKURYAZARLIK BECERİLERİ: \", LEN(B17), \" Karakter\")","v":"OKURYAZARLIK BECERİLERİ: 37 Karakter"}]
[null,"Bu bölüm Full versiyonda açılacaktır."]
[null,{"$f":"CONCATENATE(\"DEĞERLER: \", LEN(B19), \" Karakter\")","v":"DEĞERLER: 37 Karakter"}]
[null,"Bu bölüm Full versiyonda açılacaktır."]
[null,{"$f":"CONCATENATE(\"EĞİLİMLER: \", LEN(B21), \" Karakter\")","v":"EĞİLİMLER: 37 Karakter"}]
[null,"Bu bölüm Full versiyonda açılacaktır."]
[]
[null,"Genel Değerlendirme ve Öneriler"]
[null,"Genel Değerlendirme ve öneriler kısmına, çocukların bireysel ilgi duydukları merkezleri, oyuncakları, oyunları ve çocukların bireysel yetenekleri ile tatile ve geleceklerine dair güzel dileklerinizi yazabilirsiniz."]

{"sheet":"AlanBecerileri","index":5,"n_rows":104,"n_cols":2,"rows_kept":104,"cut":false,"hidden":true,"merged":[]}
[{"$f":"CONCATENATE(Ayarlamalar!$A$3,\" sınıfta okunan hikayeyi sonuna kadar dinleyebiliyor\")","v":"İsmi Yazın sınıfta okunan hikayeyi sonuna kadar dinleyebiliyor"},{"$f":"CONCATENATE(Ayarlamalar!$A$3,\" sohbet zamanında diğer çocukları aktif olarak dinleyip görüşlerini değerlendirebiliyor\")","v":"İsmi Yazın sohbet zamanında diğer çocukları aktif olarak dinleyip görüşlerini değerlendirebiliyor"}]
[{"$f":"CONCATENATE(Ayarlamalar!$A$3,\" görsel ve işitsel materyaller hakkında tahminde bulunabiliyor\")","v":"İsmi Yazın görsel ve işitsel materyaller hakkında tahminde bulunabiliyor"},{"$f":"CONCATENATE(Ayarlamalar!$A$3,\" konuşma sürecinde konuşacağı konuyu ve cümleleri planlayıp aktif bir şekilde konuşabiliyor\")","v":"İsmi Yazın konuşma sürecinde konuşacağı konuyu ve cümleleri planlayıp aktif bir şekilde konuşabiliyor"}]
[{"$f":"CONCATENATE(Ayarlamalar!$A$3,\" konuşma sürecinde nefesini ayarlayabiliyor\")","v":"İsmi Yazın konuşma sürecinde nefesini ayarlayabiliyor"},{"$f":"CONCATENATE(Ayarlamalar!$A$3,\" sınıfça seçilen bir hikayeyi sonuna kadar dinleyebiliyor\")","v":"İsmi Yazın sınıfça seçilen bir hikayeyi sonuna kadar dinleyebiliyor"}]
[{"$f":"CONCATENATE(Ayarlamalar!$A$3,\" hikaye, şarkı gibi işitsel materyallerin parçalarını fark edebiliyor\")","v":"İsmi Yazın hikaye, şarkı gibi işitsel materyallerin parçalarını fark edebiliyor"},{"$f":"CONCATENATE(Ayarlamalar!$A$3,\" görsel ve işitsel materyaller hakkında akılcı tahminlerde bulunabiliyor\")","v":"İsmi Yazın görsel ve işitsel materyaller hakkında akılcı tahminlerde bulunabiliyor"}]
[{"$f":"CONCATENATE(Ayarlamalar!$A$3,\" izlediği görsel materyallere ilişkin duygularını söyleyebiliyor\")","v":"İsmi Yazın izlediği görsel materyallere ilişkin duygularını söyleyebiliyor"},{"$f":"CONCATENATE(Ayarlamalar!$A$3,\" konuşma sürecinde nefesini ayarlayarak düzgün kullanbiliyor\")","v":"İsmi Yazın konuşma sürecinde nefesini ayarlayarak düzgün kullanbiliyor"}]
[{"$f":"CONCATENATE(Ayarlamalar!$A$3,\" resimli hikaye, afiş, broşür ve dijital araçları grupla birlikte inceleyebiliyor\")","v":"İsmi Yazın resimli hikaye, afiş, broşür ve dijital araçları grupla birlikte inceleyebiliyor"},{"$f":"CONCATENATE(Ayarlamalar!$A$3,\" şiir, hikaye, şarkı gibi görsel ve işitsel materyallerin parçalarını fark edebiliyor\")","v":"İsmi Yazın şiir, hikaye, şarkı gibi görsel ve işitsel materyallerin parçalarını fark edebiliyor"}]
[{"$f":"CONCATENATE(Ayarlamalar!$A$3,\" görsel materyallerin  benzerlik ve farklılıklarını karşılaştırabiliyor\")","v":"İsmi Yazın görsel materyallerin  benzerlik ve farklılıklarını karşılaştırabiliyor"},{"$f":"CONCATENATE(Ayarlamalar!$A$3,\" dinlediği ve izlediği görsel materyallere ilişkin duygu ve düşüncelerini özgürce anlatabiliyor\")","v":"İsmi Yazın dinlediği ve izlediği görsel materyallere ilişkin duygu ve düşüncelerini özgürce anlatabiliyor"}]
[{"$f":"CONCATENATE(Ayarlamalar!$A$3,\" hikaye, afiş, broşür gibi görsel materyallerdeki olayların parçaları arasındaki ilişkiyi anlayabiliyor\")","v":"İsmi Yazın hikaye, afiş, broşür gibi görsel materyallerdeki olayların parçaları arasındaki ilişkiyi anlayabiliyor"},{"$f":"CONCATENATE(Ayarlamalar!$A$3,\" resimli hikaye, afiş, broşür ve dijital araçları inceleyip fikirlerini anlatabiliyor\")","v":"İsmi Yazın resimli hikaye, afiş, broşür ve dijital araçları inceleyip fikirlerini anlatabiliyor"}]
[{"$f":"CONCATENATE(Ayarlamalar!$A$3,\" sohbet zamanında konuşulan konu ile kendi bilgileri arasında ilişki kurabiliyor\")","v":"İsmi Yazın sohbet zamanında konuşulan konu ile kendi bilgileri arasında ilişki kurabiliyor"},{"$f":"CONCATENATE(Ayarlamalar!$A$3,\" resimli hikaye ve dergilerdeki görsellere bakarak okuma öykünmesi yapabiliyor\")","v":"İsmi Yazın resimli hikaye ve dergilerdeki görsellere bakarak okuma öykünmesi yapabiliyor"}]
[{"$f":"CONCATENATE(Ayarlamalar!$A$3,\" konuşurken Türkçeyi düzgün kullanabiliyor\")","v":"İsmi Yazın konuşurken Türkçeyi düzgün kullanabiliyor"},{"$f":"CONCATENATE(Ayarlamalar!$A$3,\" görsel materyalleri karşılaştırarak benzerlik ve farklılıklarını ayırt edebiliyor\")","v":"İsmi Yazın görsel materyalleri karşılaştırarak benzerlik ve farklılıklarını ayırt edebiliyor"}]
[{"$f":"CONCATENATE(Ayarlamalar!$A$3,\" konuşmalarını beden dili ile destekleyebiliyor\")","v":"İsmi Yazın konuşmalarını beden dili ile destekleyebiliyor"},{"$f":"CONCATENATE(Ayarlamalar!$A$3,\" hikaye, afiş, broşür gibi görsel materyallerdeki olayların parçaları arasındaki ilişkiyi belirleyebiliyor\")","v":"İsmi Yazın hikaye, afiş, broşür gibi görsel materyallerdeki olayların parçaları arasındaki ilişkiyi belirleyebiliyor"}]
[{"$f":"CONCATENATE(Ayarlamalar!$A$3,\" erken okuryazarlık etkinliklerinde görsellerin arasındaki yazıyı fark edip gösterebiliyor\")","v":"İsmi Yazın erken okuryazarlık etkinliklerinde görsellerin arasındaki yazıyı fark edip gösterebiliyor"},{"$f":"CONCATENATE(Ayarlamalar!$A$3,\" sohbet zamanında konuşulan konu ile kendi bilgileri arasında ilişki kurup sohbete katılabiliyor\")","v":"İsmi Yazın sohbet zamanında konuşulan konu ile kendi bilgileri arasında ilişki kurup sohbete katılabiliyor"}]
[{"$f":"CONCATENATE(Ayarlamalar!$A$3,\" yazının yönünü ve yazıdaki noktalama işaretlerini fark edip gösterebiliyor\")","v":"İsmi Yazın yazının yönünü ve yazıdaki noktalama işaretlerini fark edip gösterebiliyor"},{"$f":"CONCATENATE(Ayarlamalar!$A$3,\" konuşurken örneklerden yararlanıp Türkçeyi düzgün kullanabiliyor\")","v":"İsmi Yazın konuşurken örneklerden yararlanıp Türkçeyi düzgün kullanabiliyor"}]
[{"$f":"CONCATENATE(Ayarlamalar!$A$3,\" cümlenin kelimelerden oluştuğunu ve kelimeler arasında boşluklar olduğunu fark edebiliyor\")","v":"İsmi Yazın cümlenin kelimelerden oluştuğunu ve kelimeler arasında boşluklar olduğunu fark edebiliyor"},{"$f":"CONCATENATE(Ayarlamalar!$A$3,\" konuşmalarını beden dili ile destekleyip cümlenin temel öğelerini konuşmasında kullanabiliyor\")","v":"İsmi Yazın konuşmalarını beden dili ile destekleyip cümlenin temel öğelerini konuşmasında kullanabiliyor"}]
[{"$f":"CONCATENATE(Ayarlamalar!$A$3,\" gösterilen kelimeler arasındaki uyaklı sözcükleri fark edebiliyor\")","v":"İsmi Yazın gösterilen kelimeler arasındaki uyaklı sözcükleri fark edebiliyor"},{"$f":"CONCATENATE(Ayarlamalar!$A$3,\" bir yazıdaki büyük harfleri bulup gösterebiliyor\")","v":"İsmi Yazın bir yazıdaki büyük harfleri bulup gösterebiliyor"}]
[{"$f":"CONCATENATE(Ayarlamalar!$A$3,\" kelimelerin harflerden oluştuğunu fark edebiliyor\")","v":"İsmi Yazın kelimelerin harflerden oluştuğunu fark edebiliyor"},{"$f":"CONCATENATE(Ayarlamalar!$A$3,\" erken okuryazarlık etkinliklerinde görsellerin arasındaki yazıyı fark edip gösterebiliyor\")","v":"İsmi Yazın erken okuryazarlık etkinliklerinde görsellerin arasındaki yazıyı fark edip gösterebiliyor"}]
[{"$f":"CONCATENATE(Ayarlamalar!$A$3,\" kelimelerdeki büyük harfleri gösterebiliyor\")","v":"İsmi Yazın kelimelerdeki büyük harfleri gösterebiliyor"},{"$f":"CONCATENATE(Ayarlamalar!$A$3,\" yazının yönünü ve yazıdaki noktalama işaretlerini fark edip gösterebiliyor\")","v":"İsmi Yazın yazının yönünü ve yazıdaki noktalama işaretlerini fark edip gösterebiliyor"}]
[{"$f":"IF(Ayarlamalar!$H$23=\"Otomatik\",\"Ritmik sayabiliyor ve ilk dönemde öğrendiğimiz rakamları tanıyabiliyor\",CONCATENATE(\"İlk dönem öğrendiğimiz \",Ayarlamalar!$H$23,\" rakamına kadar ritmik sayıp bu sayıları tanıyabiliyor\"))","v":"Ritmik sayabiliyor ve ilk dönemde öğrendiğimiz rakamları tanıyabiliyor"},{"$f":"CONCATENATE(Ayarlamalar!$A$3,\" cümlenin sözcüklerden oluştuğunu ve sözcükler arasında boşluklar olduğunu fark edebiliyor\")","v":"İsmi Yazın cümlenin sözcüklerden oluştuğunu ve sözcükler arasında boşluklar olduğunu fark edebiliyor"}]
[{"$f":"IF(Ayarlamalar!$H$25=\"Otomatik\",\"İlk dönemde öğrendiğimiz rakamları yazabiliyor\",CONCATENATE(\"İlk dönem öğrendiğimiz \",Ayarlamalar!$H$25,\" rakamına kadar olan rakamları biliyor ve yazabiliyor\"))","v":"İlk dönemde öğrendiğimiz rakamları yazabiliyor"},{"$f":"CONCATENATE(Ayarlamalar!$A$3,\" gösterilen ve söylenen sözcükler arasındaki uyaklı sözcükleri fark edip kafiyeli kelimeleri eşleştirebiliyor\")","v":"İsmi Yazın gösterilen ve söylenen sözcükler arasındaki uyaklı sözcükleri fark edip kafiyeli kelimeleri eşleştirebiliyor"}]
[{"$f":"IF(Ayarlamalar!$H$23=\"Otomatik\",\"1 ile 3 arasındaki nesne, varlık ve sembollerin sayısını söyleyebiliyor\",CONCATENATE(\"1 ile \",Ayarlamalar!$H$23,\" arasındaki nesne, varlık ve sembollerin sayısını söyleyebiliyor\"))","v":"1 ile 3 arasındaki nesne, varlık ve sembollerin sayısını söyleyebiliyor"},{"$f":"CONCATENATE(Ayarlamalar!$A$3,\" kelimelerin harflerden oluştuğunu fark edebiliyor\")","v":"İsmi Yazın kelimelerin harflerden oluştuğunu fark edebiliyor"}]
[{"$f":"CONCATENATE(Ayarlamalar!$A$3,\" bir bütünün parçalarını fark edebiliyor\")","v":"İsmi Yazın bir bütünün parçalarını fark edebiliyor"},{"$f":"CONCATENATE(Ayarlamalar!$A$3,\" kelimelerin ilk seslerini fark edip aynı sesle başlayan kelimeler türetebiliyor\")","v":"İsmi Yazın kelimelerin ilk seslerini fark edip aynı sesle başlayan kelimeler türetebiliyor"}]
[{"$f":"IF(Ayarlamalar!$H$27=\"Otomatik\",\"İlk dönemde öğrendiğimiz şekilleri tanıyabiliyor\",CONCATENATE(\"İlk dönem öğrendiğimiz \",Ayarlamalar!$H$27,\" şekline kadar olan şekilleri tanıyabiliyor\"))","v":"İlk dönemde öğrendiğimiz şekilleri tanıyabiliyor"},"Günlük hayattaki bir problemi söyleyip problem hakkında sorular sorup araştırma yapabiliyor"]
[{"$f":"IF(Ayarlamalar!$H$29=\"Otomatik\",\"İlk dönemde öğrendiğimiz tüm renkleri biliyor\",CONCATENATE(\"İlk dönem öğrendiğimiz \",Ayarlamalar!$H$29,\" rengine kadar olan renkleri biliyor\"))","v":"İlk dönemde öğrendiğimiz tüm renkleri biliyor"},"Bir problem hakkında nerelerden ve nasıl veri toplayacağını tahmin edebiliyor"]
["Kkarşılaştırmalardaki eksik ya da fazla parçaları tanımlayabiliyor","Basit biir problem durumu hakkında araştırma yapıp kendi görüşlerini söyleyebiliyor"]
["Nesneleri iki kişi arasında birer birer paylaştırabiliyor",{"$f":"IF(Ayarlamalar!$H$23=\"Otomatik\",\"Ritmik sayabilip öğrendiğimiz rakamları tanıyabiliyor\",CONCATENATE(\"Öğrendiğimiz \",Ayarlamalar!$H$23,\" rakamına kadar ritmik sayıp bu sayıları tanıyabiliyor\"))","v":"Ritmik sayabilip öğrendiğimiz rakamları tanıyabiliyor"}]
["Matematiksel problemleri anlayabiliyor",{"$f":"IF(Ayarlamalar!$H$25=\"Otomatik\",\"Öğrendiğimiz rakamları yazabiliyor\",CONCATENATE(\"Öğrendiğimiz \",Ayarlamalar!$H$25,\" rakamına kadar olan rakamları biliyor ve yazabiliyor\"))","v":"Öğrendiğimiz rakamları yazabiliyor"}]
["Duyuları aracılığıyla gözlemler yapabiliyor",{"$f":"IF(Ayarlamalar!$H$23=\"Otomatik\",\"1 ile 5 arasındaki nesne, varlık ve sembollerin sayısını söyleyebiliyor\",CONCATENATE(\"1 ile \",Ayarlamalar!$H$23,\" arasındaki nesne, varlık ve sembollerin sayısını söyleyebiliyor\"))","v":"1 ile 5 arasındaki nesne, varlık ve sembollerin sayısını söyleyebiliyor"}]
["Yapılan deneylerdeki nesnelerde meydana gelen değişiklikleri gözlemleyebiliyor",{"$f":"CONCATENATE(Ayarlamalar!$A$3,\" bir bütünün parçalarını fark edip aralarındaki ilişkiyi belirleyebiliyor\")","v":"İsmi Yazın bir bütünün parçalarını fark edip aralarındaki ilişkiyi belirleyebiliyor"}]
["Geri dönüşüm malzemelerini biliyor","Matematiksel olayları farklı materyal ve sembollerle ifade edebilyior"]
["Canlıların yaşam döngülerini fark edebiliyor",{"$f":"IF(Ayarlamalar!$H$27=\"Otomatik\",\"Bu dönem öğrendiğimiz şekilleri tanıyabiliyor\",CONCATENATE(\"Bu dönem öğrendiğimiz \",Ayarlamalar!$H$27,\" şekline kadar olan şekilleri tanıyabiliyor\"))","v":"Bu dönem öğrendiğimiz şekilleri tanıyabiliyor"}]
["Canlıların temel özelliklerini görmek için gözlemler yapabiliyor",{"$f":"IF(Ayarlamalar!$H$29=\"Otomatik\",\"Bu dönemde öğrendiğimiz tüm renkleri biliyor\",CONCATENATE(\"Bu dönem öğrendiğimiz \",Ayarlamalar!$H$29,\" rengine kadar olan renkleri biliyor\"))","v":"Bu dönemde öğrendiğimiz tüm renkleri biliyor"}]
["Beslenmenin tüm canlılar için önemli olduğunu biliyor","Matematiksel problemlerdeki eksik ve fazla parçaları tanımlayabiliyor"]
["Çevre sorunlarının fark edebiliyor","Nesneleri maksimum dört kişilik bir arkadaş grubunda birer birer paylaştırabiliyor"]
["Bitkilerin gelişimlerini takip edebiliyor","Matematiksel problemleri anlayıp yorumlayabiliyor"]
["Canlıların sağlıklı kalmak için yapmaları gerekenleri biliyor","Nesnelerle oluşturulmuş matematiksel bir problemi çözmek için strateji oluşturabiliyor"]
["Tasarlanmış basit düzeydeki deneyleri gerçekleştirebiliyor","Oluşturduğu çözüm yolunu deneyebiliyor"]
["Nesneler kullanarak nesne grafiği oluşturabiliyor","Duyuları aracılığıyla gözlemler yapabiliyor"]
["Gece, gündüz gibi kavramları biliyor","Yapılan deneylerdeki değişiklikleri gözlemleyebiliyor"]
["Milli ve Dini bayramların farkına varabiliyor","Materyalleri katı, sıvı, gaz olarak tanıyıp ayırabiliyor"]
["Gün akışındaki etkinlikleri sıralayabiliyor","Malzemeleri geri dönüşüm amacıyla gruplandırabiliyor"]
["Geçmişte kullanılan bazı aletlerin günümüzdeki hallerini bilebiliyor","Canlıların yaşam döngülerini fark edebiliyor"]
["Merak ettiği konulara yönelik incelemeler yapabiliyor","Canlıların temel özelliklerini görmek için gözlemler yapabiliyor"]
["Merak ettiği konulara yönelik sorular sorabiliyor","Beslenmenin tüm canlılar için önemli olduğunu biliyor"]
["İncelediği, izlediği ve dinlediği ürünleri anlamlandırıp anlatmaya çalışıyor","Çevre sorunlarının farkına varıp bu sorunların gelecek için tehlikesini fark edebiliyor"]
["Günlük hayatta karşılaştığı nesnelerin özelliklerini açıklayabiliyor","Bitkilerin gelişimlerini takip edip tekrarlı ölçümler yapabiliyor"]
["Dahil olduğu gruptaki sohbete katılabiliyor","Canlıların sağlıklı kalmak için yapmaları gerekenleri bilip kendi sağlığına dikkat edebiliyor"]
["Dağ, tepe, deniz gibi coğrafi terimlerden bazılarını bilebiliyor","Çeşitli nesneleri uygun ölçme araçlarıyla ölçebiliyor"]
["Hava durumu ile ilgili tahminde bulunabiliyor","Canlı ve cansız varlıklarını gözlemleyip gözlemlerini ifade edebiliyor"]
["Gezi, gözlem çalışmalarında tehlikeli davranışlardan kaçınıyor","Basit düzeyde deney tasarlayabiliyor"]
["Ürünleri almak için para gerektiğini biliyor","Yakın çevresindeki sorunlara yönelik hayal gücüne dayalı çözümler önerebiliyor"]
["Basit denge hareketleri yapabiliyor","Günlük hayatta karşılaştığı problemleri çözmek için veri toplayıp bu verileri kullanabiliyor"]
["Nesne kontrolü gerektiren basit hareketler yapabiliyor","Sürdürülebilir hayat için yaşından beklenen düzeyde öneriler sunabiliyor"]
["Farklı yoğurma materyallerini kavrayıp şekillendirebiliyor","Kendisine verilen kroki üzerindeki rotayı takip edebiliyor"]
["Bedeninin bölümlerini bilip gösterebiliyor","Nesneler kullanarak nesne grafiği oluşturabiliyor"]
["Özel bölgelerini bilip iyi ve kötü dokunuşların farkını anlayabiliyor","Ürünleri almak için para gerektiğini biliyor"]
["Eşli olarak oyun, dans ve hareket ektinlikleri yapabiliyor","Gece, gündüz ve gün gibi kavramları biliyor"]
["Grup çalışmalarında eş zamanlı hareket etmeye çalışıyor","Milli ve Dini bayramların farkına varabiliyor"]
["Sağlıklı ve sağlıksız yiyecekleri fark edebiliyor","Gün akışında yaşanan eylem ve etkinlikleri sıralayabiliyor"]
["Yeterli miktarda sıvı tüketmeye gayret edebiliyor","Geçmişte kullanılan bazı aletlerin günümüzdeki hallerini bilebiliyor"]
["Hareketli etkinliklere uyum sağlayabiliyor","Merak ettiği konulara yönelik incelemeler yapıp sorular sorabiliyor"]
["Hareketli etkinliklerden sonra dinlenmesi gerektiğini biliyor","İncelediği, izlediği ve dinlediği ürünleri bir başkasına açıklayabiliyor"]
["Mevsim şartlarına uygun giyinmeye özen gösteriyor","Günlük hayatta karşılaştığı nesne ya da durumların özelliklerini açıklayabiliyor"]
["Bulunduğu çevrenin temizliğine özen gösteriyor","Dahil olduğu gruptaki sohbete katılabiliyor"]
["Hareketli oyunların kurallarını fark edebiliyor","Dağ, tepe, deniz gibi coğrafi terimlerden bazılarını bilebiliyor"]
["Hareketli oyunlarda basit taktikler oluşturabiliyor","Hava durumu ile ilgili tahminde bulunup hava olayları hakkında sorular sorabiliyor"]
["Oyunlarda lider rolündeki çocuğu izleyebiliyor","Gezi, gözlem çalışmalarında tehlikeli davranışlardan kaçınıyor"]
["Temel sanat materyallerini amacına uygun olarak kullanabiliyor","Etkinliğin durumuna uygun denge hareketleri yapabiliyor"]
["Sınıfta yapılan drama etkinliklerinde uygun materyalleri kullanabiliyor","Nesne kontrolü gerektiren itme, çekme, kavrama gibi hareketleri yapabiliyor"]
["Sanat eserine odaklanıp inceleyebiliyor","Farklı büyüklükteki nesneleri kavrayabiliyor"]
["Sanat eseri hakkında sorular sorabiliyor","Bedeninin bölümlerini bilip adlarını söyleyebiliyor"]
["İzlediği ya da dinlediği sanat eseri hakkındaki sorular sorabiliyor","Özel bölgelerini bilip iyi ve kötü dokunuşların farkını anlayabiliyor"]
["İzlediği ya da dinlediği sanat eseri hakkındaki duygularını açıklayabiliyor","Başkalarının ve kendinin özel alanını biliyor"]
["Yapmak istediği sanat etkinliğinin türününe uygun malzemeleri seçebiliyor","Eşli olarak oyun, dans ve hareket ektinlikleri yapabiliyor"]
["Yaratıcılığını geliştirecek bireysel ya da grup etkinliklerine katılıyor","Grup çalışmalarında grupla eş zamanlı hareket edebiliyor"]
["Sanat etkinliklerinde çeşitli ürünler oluşturabiliyor","Sağlıklı ve sağlıksız yiyecekleri biliyor"]
["Öğrendiği şarkıları doğru telaffuzla söyleyebiliyor","Sağlıklı beslenmeye dikkat etmeye çalışıyor"]
["Öğrendiği şarkıyı bireysel ya da sınıfla birlikte söyleyebiliyor","Günlük olarak yeterli miktarda sıvı tüketmeye gayret ediyor"]
["Duyduğu sesin kaynağını ve yönünü söyleyebiliyor","Hareketli etkinliklerde vücudundaki değişiklikleri söyleyebiliyor"]
["Öğrendiği şarkılara Orff aletleriyle eşlik etmeye çalışıyor","Hareketli etkinliklerin aralarında dinlenmesi gerektiğini biliyor"]
["Doğadan ya da çevreden gelen sesleri taklit edebiliyor","Günlük yaşamda mevsim şartlarına uygun giyinmeye özen gösteriyor"]
["Çalan müziğe uygun dans etmeye çalışıyor","Sınıfın, okul bahçesinin ve bulunduğu çevrenin temizliğine özen gösteriyor"]
[null,"Hareketli oyunların kurallarını fark edip basit kurallara uyabiliyor"]
[null,"Hareketli oyunlarda basit taktikler oluşturup uygulayabiliyor"]
[null,"Oyunlarda lider rolündeki çocuğu izleyip gerektiğinde lider olabiliyor"]
[null,"Temel sanat materyallerini amacına uygun olarak seçip kullanabiliyor"]
[null,"Sınıfta yapılan drama etkinliklerinde dramaya uygun materyalleri kullanabiliyor"]
[null,"Sanat eserine odaklanıp inceleyebiliyor"]
[null,"Sanat eseri hakkında merak ettiği soruları sorabiliyor"]
[null,"Drama etkinliklerinde dramanın içeriği ve konusu hakkında sorular sorabiliyor"]
[null,"İzlediği ya da dinlediği sanat eseri hakkındaki duygularını açıklayabiliyor"]
[null,"Gösterilen bir sanat eserinin nasıl yapıldığına dair tahminde bulunabiliyor"]
[null,"Dijital ortamda gösterilen sanat eserleri hakkında fikirlerini söyleyebiliyor"]
[null,"Yapmak istediği sanat etkinliğinin türünü ve gerekli malzemeleri seçebiliyor"]
[null,"Yaratıcılığını geliştirecek bireysel ya da grup etkinliklerinde aktif rol alıyor"]
[null,"Sanat etkinliklerinde çeşitli ürünler oluşturabiliyor"]
[null,"Dinlediği müziklerdeki ses, ritim ve tempo farklılıklarını fark edebiliyor"]
[null,"Öğrendiği şarkıları doğru telaffuzla söyleyebiliyor"]
[null,"Birkaç seçenek arasından dinlemek istediği şarkıyı seçebiliyor"]
[null,"Öğrendiği şarkıyı bireysel ya da sınıfla birlikte söyleyebiliyor"]
[null,"Duyduğu sesin kaynağını ve yönünü söyleyebiliyor"]
[null,"Öğrendiği şarkılara Orff aletleriyle eşlik edebiliyor"]
[null,"Doğadan ya da çevreden gelen sesleri taklit edebiliyor"]
[null,"Çalan müziğe uygun bir şekilde dans edebiliyor"]
[null,"Bildiği şarkılardan yola çıkarak doğaçlama şarkılar üretebiliyor"]